bitfinex-derivatives/quotes_SOLF0:USTF0_20250109
["timestamp","ask_amount","ask_price","bid_price","bid_amount"]
[1736463622594,2.6889,185.96,185.91,1.617]
[1736463623294,2.6892,185.94,185.91,1.617]
[1736463623493,12.495233,186.0,185.88,10.27570678]
[1736463623691,12.495233,186.0,185.88,3.0589]
[1736463624093,2.6894,185.93,185.88,3.0589]
[1736463624303,12.495233,186.0,185.88,3.0589]
[1736463624595,12.495233,185.97,185.87,12.495233]
[1736463625097,12.495233,185.97,185.85,1.5903]
[1736463625299,12.495233,185.93,185.84,7.21680678]
[1736463625595,12.495233,185.93,185.82,28.86722711]
[1736463625995,2.6899,185.89,185.82,28.86722711]
[1736463626393,12.495233,185.93,185.82,28.86722711]
[1736463626994,12.495233,185.93,185.79,12.495233]
[1736463627794,12.495233,185.93,185.82,12.495233]
[1736463628189,12.495233,185.96,185.82,12.495233]
[1736463628390,2.6897,185.91,185.82,12.495233]
[1736463628792,2.69,185.88,185.78,1.5658]
[1736463629093,2.69,185.88,185.8,12.495233]
[1736463630302,2.6902,185.87,185.8,12.495233]
[1736463630498,12.495233,185.93,185.8,12.495233]
[1736463633115,2.6903,185.87,185.8,12.495233]
[1736463633715,2.6903,185.86,185.8,12.495233]
[1736463636919,12.495233,185.9,185.78,1.5658]
[1736463637211,2.6908,185.83,185.78,1.5658]
[1736463637418,12.495233,185.87,185.78,1.5658]
[1736463637818,2.691,185.82,185.78,1.5658]
[1736463638220,12.495233,185.87,185.77,1.6233]
[1736463638822,2.691,185.82,185.77,1.6233]
[1736463640121,12.495233,185.87,185.77,1.6233]
[1736463640921,2.691,185.82,185.77,1.6233]
[1736463645326,2.691,185.82,185.78,8.01060496]
[1736463645626,2.691,185.82,185.77,1.6233]
[1736463645925,2.691,185.82,185.77,9.63390496]
[1736463647426,8.01060496,185.83,185.77,1.6233]
[1736463647628,8.01060496,185.81,185.75,1.6136]
[1736463648121,8.01060496,185.81,185.74,14.61395242]
[1736463648317,2.6913,185.79,185.74,14.61395242]
[1736463648828,4.82,185.89,185.76,8.01060496]
[1736463649026,4.82,185.89,185.74,6.60334746]
[1736463649027,8.01060496,185.84,185.78,8.01060496]
[1736463650130,2.6908,185.83,185.76,8.01060496]
[1736463653029,2.6908,185.83,185.74,6.60334746]
[1736463653328,8.01060496,185.8,185.74,6.60334746]
[1736463654229,8.01060496,185.8,185.75,8.01060496]
[1736463655228,2.6913,185.79,185.74,6.60334746]
[1736463656330,2.6913,185.79,185.75,8.01060496]
[1736463659131,2.6913,185.79,185.74,6.60334746]
[1736463660434,2.6913,185.79,185.75,8.01060496]
[1736463662639,5.3789,185.92,185.77,8.01060496]
[1736463662829,4.82,185.91,185.79,8.01060496]
[1736463663033,8.01060496,185.86,185.79,8.01060496]
[1736463663236,2.6906,185.84,185.79,8.01060496]
[1736463665241,10.70120496,185.84,185.77,41.65863207]
[1736463665643,10.70120496,185.84,185.78,4.74325395]
[1736463666438,8.01060496,185.84,185.78,4.74325395]
[1736463666644,8.01060496,185.82,185.78,7.21680678]
[1736463667145,2.6913,185.79,185.78,7.21680678]
[1736463667640,2.6913,185.79,185.75,28.86722711]
[1736463668532,2.6913,185.79,185.75,7.21680678]
[1736463669742,2.6913,185.79,185.76,4.74147318]
[1736463669944,8.01060496,185.82,185.76,4.74147318]
[1736463670139,2.691,185.81,185.76,4.74147318]
[1736463670539,2.691,185.81,185.75,28.86722711]
[1736463670739,8.01060496,185.82,185.75,28.86722711]
[1736463670740,2.6912,185.8,185.75,28.86722711]
[1736463671643,2.6912,185.8,185.76,7.21680678]
[1736463672750,2.6912,185.8,185.77,4.74553601]
[1736463672939,8.01060496,185.83,185.77,4.74553601]
[1736463673144,8.01060496,185.83,185.76,36.87783207]
[1736463673341,8.01060496,185.86,185.76,28.86722711]
[1736463673546,8.01060496,185.86,185.79,8.01060496]
[1736463673746,8.01060496,185.88,185.81,8.01060496]
[1736463674545,2.6902,185.87,185.83,8.01060496]
[1736463674749,8.01060496,185.9,185.83,8.01060496]
[1736463674943,8.01060496,185.9,185.78,28.86722711]
[1736463674944,8.01060496,185.9,185.85,8.01060496]
[1736463675145,8.01060496,185.92,185.87,8.01060496]
[1736463675347,8.01060496,185.96,185.89,8.01060496]
[1736463675545,10.69960496,185.96,185.89,8.01060496]
[1736463675743,2.689,185.96,185.91,8.01060496]
[1736463676050,8.01060496,185.98,185.91,8.01060496]
[1736463676347,8.01060496,186.0,185.93,8.01060496]
[1736463676742,10.69900496,186.0,185.93,8.01060496]
[1736463677242,2.6884,186.0,185.91,12.49559472]
[1736463677448,12.49559472,186.03,185.91,12.49559472]
[1736463677650,2.6881,186.01,185.91,12.49559472]
[1736463678150,2.688,186.03,185.94,12.49559472]
[1736463678850,2.688,186.03,185.94,17.29559472]
[1736463679251,15.74369472,186.07,185.94,17.29559472]
[1736463679450,2.6877,186.04,185.94,17.29559472]
[1736463680746,12.49559472,186.1,185.97,12.49559472]
[1736463680945,12.49559472,186.1,185.98,4.7271]
[1736463681151,12.49559472,186.13,186.0,12.49559472]
[1736463681445,12.49559472,186.13,186.03,12.49559472]
[1736463681848,2.6865,186.12,186.03,12.49559472]
[1736463682043,1.5597,186.18,186.06,12.49559472]
[1736463682349,13.35458473,186.17,186.06,12.49559472]
[1736463682550,0.85899001,186.16,186.03,12.49559472]
[1736463683156,12.49559472,186.17,186.03,12.49559472]
[1736463683649,12.49559472,186.14,186.03,12.49559472]
[1736463683846,12.49559472,186.14,186.0,12.49559472]
[1736463684049,12.49559472,186.11,186.0,12.49559472]
[1736463684249,17.29559472,186.11,185.98,4.7271]
[1736463684450,4.7032,186.1,185.98,4.7271]
[1736463686659,17.29559472,186.11,186.0,12.49559472]
[1736463687062,2.6873,186.07,186.0,12.49559472]
[1736463687755,17.29559472,186.11,185.98,3.1556]
[1736463687956,12.49559472,186.08,185.96,6.59694077]
[1736463688558,2.6883,186.0,185.96,6.59694077]
[1736463688759,4.8,186.04,185.91,12.49559472]
[1736463689162,2.6889,185.96,185.91,12.49559472]
[1736463689367,12.49559472,186.02,185.91,12.49559472]
[1736463689766,2.6889,185.96,185.91,12.49559472]
[1736463690270,2.6887,185.98,185.91,12.49559472]
[1736463690471,12.49559472,186.02,185.91,12.49559472]
[1736463692071,2.6888,185.97,185.91,12.49559472]
[1736463692271,12.49559472,186.02,185.91,12.49559472]
[1736463694173,2.6888,185.97,185.91,12.49559472]
[1736463694876,2.6889,185.96,185.91,12.49559472]
[1736463699179,2.689,185.95,185.91,12.49559472]
[1736463706078,2.6888,185.96,185.94,12.49559472]
[1736463706384,4.8,186.04,185.94,12.49559472]
[1736463707083,2.6881,186.01,185.94,12.49559472]
[1736463707277,12.7933422,186.06,185.97,12.49559472]
[1736463708288,2.6882,186.01,185.97,12.49559472]
[1736463709183,2.6883,186.0,185.97,12.49559472]
[1736463709885,2.6878,186.04,185.97,12.49559472]
[1736463710186,7.9933422,186.06,185.97,12.49559472]
[1736463710389,7.9933422,186.06,185.98,4.7907]
[1736463710884,7.9933422,186.06,186.0,12.49559472]
[1736463711084,2.6879,186.03,186.0,12.49559472]
[1736463711483,7.9933422,186.06,186.0,12.49559472]
[1736463711789,2.688,186.02,186.0,12.49559472]
[1736463712090,89.21942352,186.21,186.01,12.49559472]
[1736463712289,12.49559472,186.18,186.04,12.49559472]
[1736463712589,0.85934191,186.17,186.07,12.49559472]
[1736463712986,17.29559472,186.18,186.07,12.49559472]
[1736463713281,12.49559472,186.18,186.07,12.49559472]
[1736463714083,12.49559472,186.18,186.04,12.49559472]
[1736463714484,2.6863,186.14,186.04,12.49559472]
[1736463714685,12.49559472,186.18,186.04,12.49559472]
[1736463716289,2.6867,186.11,186.04,12.49559472]
[1736463717486,2.6868,186.1,186.04,12.49559472]
[1736463719594,2.6868,186.1,186.07,12.49559472]
[1736463722297,2.6867,186.11,186.07,12.49559472]
[1736463723093,2.6865,186.13,186.07,12.49559472]
[1736463723392,2.6865,186.13,186.1,12.49559472]
[1736463727292,2.6865,186.13,186.07,12.49559472]
[1736463727495,2.6866,186.12,186.07,12.49559472]
[1736463728098,17.29559472,186.18,186.07,12.49559472]
[1736463728295,12.49559472,186.15,186.04,12.49559472]
[1736463728498,12.49559472,186.15,186.01,12.49559472]
[1736463728692,2.6878,186.04,185.98,17.28629472]
[1736463728897,4.8,186.08,185.98,17.28629472]
[1736463730894,2.6877,186.04,185.98,17.28629472]
[1736463731601,2.6879,186.03,185.98,4.7907]
[1736463731797,4.8,186.08,185.98,4.7907]
[1736463732602,2.6875,186.05,185.98,4.7907]
[1736463732802,4.8,186.08,185.98,4.7907]
[1736463735305,2.6878,186.03,185.98,4.7907]
[1736463735802,12.49559472,186.06,185.98,3.2196]
[1736463736000,12.49559472,186.06,185.94,19.09347159]
[1736463736194,2.688,186.02,185.94,19.09347159]
[1736463736799,2.688,186.02,185.97,12.49559472]
[1736463738706,12.49559472,186.06,185.94,19.09347159]
[1736463739704,2.6885,185.99,185.94,19.09347159]
[1736463739903,12.49559472,186.06,185.94,19.09347159]
[1736463740205,12.49559472,186.03,185.94,6.59787687]
[1736463741009,12.49559472,186.03,185.91,12.49559472]
[1736463742098,2.6889,185.96,185.91,12.49559472]
[1736463743402,2.6891,185.95,185.91,12.49559472]
[1736463743603,17.29559472,186.0,185.9,3.1072]
[1736463746210,12.49559472,186.0,185.9,3.1072]
[1736463746415,4.8,186.0,185.94,12.49559472]
[1736463747009,7.4884,186.0,185.94,12.49559472]
[1736463747209,4.8,186.0,185.94,12.49559472]
[1736463748311,2.6885,185.99,185.94,12.49559472]
[1736463750516,4.8,186.04,185.94,12.49559472]
[1736463750815,12.49559472,186.03,185.91,14.13559472]
[1736463751013,2.6891,185.95,185.91,14.13559472]
[1736463751215,4.8,186.04,185.91,14.13559472]
[1736463751517,2.6888,185.97,185.91,14.13559472]
[1736463751718,4.8,186.04,185.91,14.13559472]
[1736463752317,2.6889,185.96,185.91,14.13559472]
[1736463752518,12.49559472,186.02,185.91,14.13559472]
[1736463753115,12.49559472,186.02,185.9,1.5338]
[1736463753417,2.6894,185.93,185.9,1.5338]
[1736463753618,12.49559472,186.02,185.9,1.5338]
[1736463754120,2.6892,185.94,185.9,1.5338]
[1736463756722,12.49559472,186.02,185.9,1.5338]
[1736463756923,2.6893,185.93,185.9,1.5338]
[1736463758022,10.0003,186.08,185.91,12.49559472]
[1736463758228,12.49559472,186.05,185.94,12.49559472]
[1736463758623,2.6885,185.99,185.94,12.49559472]
[1736463758926,12.49559472,186.05,185.94,12.49559472]
[1736463759127,4.8,186.04,185.94,12.49559472]
[1736463760230,2.6886,185.98,185.94,12.49559472]
[1736463763720,2.6881,186.02,185.94,12.49559472]
[1736463763925,2.6881,186.02,185.95,3.1072]
[1736463764118,2.6881,186.02,185.97,12.49559472]
[1736463765934,2.6882,186.01,185.95,3.1072]
[1736463766931,2.6878,186.04,185.97,12.49559472]
[1736463767630,17.29559472,186.08,185.97,12.49559472]
[1736463767936,2.688,186.03,185.97,12.49559472]
[1736463768629,2.688,186.02,185.97,12.49559472]
[1736463769534,2.6878,186.04,185.97,12.49559472]
[1736463769732,2.6878,186.04,185.98,1.6363]
[1736463773730,12.49559472,186.08,185.98,1.6363]
[1736463775737,2.688,186.03,185.98,1.6363]
[1736463776336,2.688,186.02,185.98,1.6363]
[1736463777339,2.688,186.02,185.99,7.99344209]
[1736463778236,7.99344209,186.08,186.01,7.99344209]
[1736463778438,2.6878,186.04,186.01,7.99344209]
[1736463781644,7.99344209,186.08,185.98,1.6363]
[1736463781645,2.6879,186.03,185.99,7.99344209]
[1736463781840,7.99344209,186.04,185.95,3.1072]
[1736463782044,12.79137212,186.09,185.95,1.4975]
[1736463782045,7.99344209,186.02,185.95,1.4975]
[1736463782244,7.99344209,186.02,185.95,9.49094209]
[1736463782443,2.6885,185.99,185.95,9.49094209]
[1736463782647,7.99344209,186.02,185.95,9.49094209]
[1736463783344,12.49535852,186.04,185.95,1.4975]
[1736463783542,12.49535852,186.04,185.92,12.49535852]
[1736463783852,2.6888,185.96,185.92,12.49535852]
[1736463784150,4.8,186.02,185.92,12.49535852]
[1736463785549,2.6888,185.96,185.92,12.49535852]
[1736463790455,2.6887,185.98,185.92,12.49535852]
[1736463790649,4.8,186.02,185.92,12.49535852]
[1736463791154,2.6885,185.99,185.92,12.49535852]
[1736463791449,4.8,186.02,185.92,12.49535852]
[1736463792148,2.6885,185.99,185.92,12.49535852]
[1736463792755,7.99137212,186.09,185.95,12.49535852]
[1736463792951,4.8,186.08,185.98,12.49535852]
[1736463793159,7.99137212,186.09,185.98,12.49535852]
[1736463793448,2.6875,186.06,185.99,1.4937]
[1736463793654,7.99137212,186.09,185.99,1.4937]
[1736463794254,2.6874,186.06,185.99,1.4937]
[1736463794554,2.6874,186.06,186.01,12.49535852]
[1736463795056,7.99137212,186.09,185.99,3.0596]
[1736463795257,7.99137212,186.09,185.99,1.4937]
[1736463795654,2.6879,186.03,185.99,1.4937]
[1736463797257,2.688,186.02,185.99,1.4937]
[1736463797853,2.6881,186.01,185.95,1.5659]
[1736463798051,12.49535852,186.07,185.95,1.5659]
[1736463799057,1.5171,186.08,185.95,1.5659]
[1736463799261,1.5171,186.08,185.97,12.49535852]
[1736463799560,2.6878,186.04,185.97,12.49535852]
[1736463799958,1.5171,186.08,185.97,12.49535852]
[1736463800760,2.6876,186.05,185.97,12.49535852]
[1736463800961,1.5171,186.08,185.97,12.49535852]
[1736463801859,2.6875,186.06,185.97,12.49535852]
[1736463802060,7.99137212,186.09,186.0,12.49535852]
[1736463802451,2.6874,186.07,186.0,12.49535852]
[1736463803051,7.99137212,186.09,186.0,12.49535852]
[1736463803259,2.6875,186.06,186.0,12.49535852]
[1736463804260,7.99137212,186.09,186.0,12.49535852]
[1736463804558,2.6873,186.07,186.0,12.49535852]
[1736463804957,7.99137212,186.09,186.0,12.49535852]
[1736463805157,7.99137212,186.09,185.98,1.5829]
[1736463805360,7.99255033,186.07,186.0,7.99255033]
[1736463805763,2.6877,186.05,186.0,7.99255033]
[1736463806467,2.6874,186.06,186.02,7.99255033]
[1736463809467,7.99137212,186.09,186.04,7.99255033]
[1736463809770,3.0904,186.15,186.06,7.99255033]
[1736463809967,2.6866,186.12,186.08,7.99255033]
[1736463810169,7.99255033,186.16,186.1,7.99255033]
[1736463810468,2.6864,186.13,186.1,7.99255033]
[1736463810665,7.99255033,186.14,186.02,3.0936]
[1736463810866,7.99255033,186.12,186.06,7.99255033]
[1736463811269,10.67925033,186.12,186.06,7.99255033]
[1736463811763,2.6867,186.12,186.08,7.99255033]
[1736463812273,7.99255033,186.17,186.1,7.99255033]
[1736463812873,7.99255033,186.15,186.08,7.99255033]
[1736463813376,6.4087,186.2,186.1,7.99255033]
[1736463813377,4.8,186.2,186.1,7.99255033]
[1736463813670,4.8,186.2,186.03,6.59462243]
[1736463813671,7.99255033,186.18,186.12,7.99255033]
[1736463813867,7.99255033,186.16,186.1,7.99255033]
[1736463814071,7.99255033,186.14,186.03,6.59462243]
[1736463814372,7.99255033,186.14,186.08,7.99255033]
[1736463814578,7.99255033,186.14,186.06,7.99255033]
[1736463814778,7.99255033,186.14,186.03,6.59462243]
[1736463814779,2.6868,186.11,186.08,7.99255033]
[1736463815374,2.6863,186.14,186.1,7.99255033]
[1736463817276,2.6863,186.14,186.07,12.47549906]
[1736463817277,2.6864,186.14,186.07,12.47549906]
[1736463817478,3.0958,186.21,186.1,12.47549906]
[1736463818485,2.6857,186.18,186.1,12.47549906]
[1736463818679,2.6857,186.18,186.11,1.616]
[1736463820879,2.6858,186.17,186.11,1.616]
[1736463821087,12.47549906,186.19,186.07,12.47549906]
[1736463821271,0.85890503,186.18,186.07,12.47549906]
[1736463821478,2.6869,186.1,186.04,14.09149906]
[1736463821780,4.8,186.15,186.04,1.616]
[1736463822477,12.47549906,186.13,186.03,6.59462243]
[1736463822875,12.47549906,186.1,185.99,13.98319906]
[1736463823078,12.47549906,186.1,185.99,1.5077]
[1736463823578,12.47549906,186.04,185.95,1.6246]
[1736463823778,17.27549906,186.04,185.95,1.6246]
[1736463824177,2.6881,186.02,185.95,1.6246]
[1736463824483,4.8,186.04,185.95,1.6246]
[1736463824883,2.6879,186.03,185.95,1.6246]
[1736463825285,2.6879,186.03,185.96,12.47549906]
[1736463825985,2.6877,186.05,185.96,12.47549906]
[1736463826181,7.99150698,186.09,185.99,12.47549906]
[1736463827183,2.6874,186.07,185.99,12.47549906]
[1736463827486,7.99150698,186.09,185.99,12.47549906]
[1736463827791,7.99150698,186.09,185.95,1.6246]
[1736463827792,12.47549906,186.07,185.96,4.8]
[1736463827989,7.99150698,186.09,185.97,12.47549906]
[1736463828286,2.6875,186.06,185.97,12.47549906]
[1736463828789,2.6875,186.06,186.0,12.47549906]
[1736463828989,2.6872,186.08,186.0,12.47549906]
[1736463829287,7.99150698,186.09,186.01,1.6543]
[1736463829681,2.6875,186.06,186.01,1.6543]
[1736463831583,12.47549906,186.16,186.03,12.47549906]
[1736463831889,0.8591027,186.15,186.03,12.47549906]
[1736463832387,0.8591027,186.15,186.03,14.08369906]
[1736463832583,2.6869,186.1,186.03,14.08369906]
[1736463832978,2.6868,186.1,186.03,14.08369906]
[1736463833184,12.47549906,186.13,186.03,14.08369906]
[1736463833991,2.687,186.09,186.03,14.08369906]
[1736463834992,2.687,186.09,186.03,1.6082]
[1736463835185,6.4208,186.18,186.03,14.08369906]
[1736463835388,2.6867,186.11,186.03,14.08369906]
[1736463835690,12.47549906,186.15,186.03,14.08369906]
[1736463835887,6.4208,186.18,186.03,14.08369906]
[1736463835888,12.47549906,186.12,186.03,1.6082]
[1736463836290,2.6869,186.1,186.03,1.6082]
[1736463836488,12.47549906,186.15,186.03,14.08369906]
[1736463836787,2.6862,186.15,186.06,12.47549906]
[1736463836991,2.6862,186.15,186.09,12.47549906]
[1736463837193,1.6483,186.2,186.09,12.47549906]
[1736463837793,2.6863,186.14,186.06,12.47549906]
[1736463838184,12.47549906,186.21,186.09,12.47549906]
[1736463838388,10.34156928,186.25,186.15,12.47549906]
[1736463838594,0.85877372,186.24,186.15,12.47549906]
[1736463838797,7.28106928,186.25,186.16,1.6444]
[1736463839293,12.47549906,186.28,186.18,12.47549906]
[1736463839693,12.47549906,186.28,186.16,3.1705]
[1736463840288,13.33405791,186.25,186.12,12.47549906]
[1736463840485,0.85864088,186.24,186.12,12.47549906]
[1736463840685,12.47549906,186.22,186.11,3.0923]
[1736463840995,12.47549906,186.22,186.07,29.30388221]
[1736463840996,12.47549906,186.19,186.07,29.30388221]
[1736463841190,12.47549906,186.16,186.07,29.30388221]
[1736463841388,2.6864,186.13,186.06,12.47549906]
[1736463841785,12.47549906,186.16,186.06,12.47549906]
[1736463841985,2.6867,186.11,186.05,4.6616]
[1736463842595,2.6871,186.09,186.03,12.47549906]
[1736463842793,12.47549906,186.13,186.0,15.56779906]
[1736463844596,2.6874,186.07,186.0,15.56779906]
[1736463844797,12.47549906,186.13,186.03,12.47549906]
[1736463845189,2.687,186.09,186.03,12.47549906]
[1736463845389,2.687,186.09,186.0,3.0923]
[1736463845390,2.687,186.09,186.0,23.06550952]
[1736463845796,4.84,186.11,186.0,3.0923]
[1736463845994,19.97320952,186.1,186.0,1.4998]
[1736463846198,21.61740952,186.1,185.99,1.5693]
[1736463846497,24.68540952,186.1,185.99,1.5693]
[1736463846697,19.97320952,186.07,185.96,7.32597055]
[1736463847098,19.97320952,186.07,185.95,1.4991]
[1736463847400,0.85951285,186.06,185.95,1.4991]
[1736463847600,24.68540952,186.1,185.95,1.4991]
[1736463847797,2.688,186.03,185.95,1.4991]
[1736463847997,24.68540952,186.1,185.95,1.4991]
[1736463848198,0.85942304,186.09,185.95,1.4991]
[1736463848500,2.6881,186.02,185.95,1.4991]
[1736463850105,2.6878,186.03,185.95,1.4991]
[1736463850903,2.688,186.02,185.95,1.4991]
[1736463851498,2.6886,185.98,185.95,1.4991]
[1736463851798,4.82,186.03,185.92,1.6211]
[1736463852002,2.6888,185.96,185.92,1.6211]
[1736463852399,19.97320952,186.02,185.89,1.6246]
[1736463852603,2.6893,185.93,185.89,1.6246]
[1736463852798,4.7083,186.01,185.89,1.6246]
[1736463852999,2.6888,185.97,185.89,1.6246]
[1736463853201,4.84,186.0,185.89,1.6246]
[1736463854406,2.6887,185.97,185.89,1.6246]
[1736463854605,4.84,186.0,185.89,1.6246]
[1736463855304,2.6886,185.98,185.91,19.97320952]
[1736463855509,4.84,186.0,185.91,19.97320952]
[1736463855708,4.84,186.0,185.89,1.6246]
[1736463855910,2.6892,185.94,185.89,1.6246]
[1736463857106,2.689,185.95,185.89,1.6246]
[1736463857700,2.6891,185.94,185.89,1.6246]
[1736463857904,19.97320952,185.99,185.88,8.21155021]
[1736463858106,3.0978,185.99,185.88,8.21155021]
[1736463858306,4.84,186.0,185.88,28.18475973]
[1736463858504,7.99464987,186.03,185.88,28.18475973]
[1736463858709,12.85464987,186.03,185.91,19.97320952]
[1736463859002,2.6888,185.97,185.91,19.97320952]
[1736463859211,19.97320952,186.02,185.88,28.18475973]
[1736463860308,0.85976352,186.01,185.88,28.18475973]
[1736463861111,12.85464987,186.03,185.91,19.97320952]
[1736463861319,2.6885,185.99,185.91,19.97320952]
[1736463861507,12.85464987,186.03,185.92,1.4984]
[1736463862808,2.689,185.96,185.92,1.4984]
[1736463864014,2.6892,185.94,185.88,28.18475973]
[1736463864708,12.85464987,186.03,185.88,28.18475973]
[1736463865414,2.6888,185.97,185.91,12.49750188]
[1736463865712,20.49215175,186.03,185.91,12.49750188]
[1736463865915,7.99464987,186.03,185.94,12.49750188]
[1736463866115,7.99464987,186.03,185.97,12.49750188]
[1736463866813,2.6881,186.02,185.97,12.49750188]
[1736463867009,2.6881,186.02,185.96,1.6228]
[1736463867306,2.6884,186.0,185.96,1.6228]
[1736463867507,7.99464987,186.03,185.96,1.6228]
[1736463867907,7.99464987,186.03,185.95,1.5959]
[1736463869309,2.6884,186.0,185.95,1.5959]
[1736463869508,7.99464987,186.03,185.95,1.5959]
[1736463869707,20.49215175,186.03,185.91,12.49750188]
[1736463869905,12.49750188,186.0,185.89,4.7896]
[1736463870109,17.35750188,186.0,185.89,4.7896]
[1736463871711,2.6891,185.94,185.89,4.7896]
[1736463872018,12.49750188,185.97,185.85,12.49750188]
[1736463872215,2.6894,185.92,185.85,12.49750188]
[1736463873015,17.35750188,186.0,185.88,12.49750188]
[1736463873608,12.49750188,185.97,185.85,12.49750188]
[1736463874218,2.6892,185.94,185.85,12.49750188]
[1736463874417,12.49750188,185.97,185.85,12.49750188]
[1736463875017,2.6896,185.91,185.85,12.49750188]
[1736463875713,12.49750188,185.97,185.85,12.49750188]
[1736463875918,12.49750188,185.97,185.81,9.86711086]
[1736463876118,12.49750188,185.97,185.83,12.49750188]
[1736463876318,12.49750188,185.97,185.86,12.49750188]
[1736463877419,4.88,185.96,185.86,12.49750188]
[1736463877819,2.6895,185.92,185.86,12.49750188]
[1736463878314,4.88,185.96,185.86,12.49750188]
[1736463879118,2.6895,185.92,185.86,12.49750188]
[1736463879319,12.49750188,185.94,185.83,12.49750188]
[1736463880018,2.6901,185.88,185.83,12.49750188]
[1736463881021,12.49750188,185.94,185.83,12.49750188]
[1736463881227,12.49750188,185.91,185.81,9.86711086]
[1736463881417,12.49750188,185.91,185.81,3.2658]
[1736463881719,12.49750188,185.88,185.79,7.32597055]
[1736463882014,2.6912,185.8,185.79,7.32597055]
[1736463882218,17.37750188,185.88,185.79,7.32597055]
[1736463882612,17.37750188,185.88,185.77,12.49750188]
[1736463883118,2.691,185.81,185.77,12.49750188]
[1736463883318,17.37750188,185.88,185.76,29.30388221]
[1736463883523,12.49750188,185.85,185.76,29.30388221]
[1736463884018,12.49750188,185.85,185.73,7.32597055]
[1736463884220,2.6909,185.82,185.73,7.32597055]
[1736463884413,12.49750188,185.85,185.73,7.32597055]
[1736463884815,2.6912,185.8,185.74,12.49750188]
[1736463885314,2.6913,185.79,185.74,12.49750188]
[1736463886922,2.6915,185.78,185.74,12.49750188]
[1736463887318,12.49750188,185.85,185.74,12.49750188]
[1736463887624,2.6914,185.79,185.74,12.49750188]
[1736463889417,12.49750188,185.85,185.74,12.49750188]
[1736463889922,2.6915,185.78,185.74,12.49750188]
[1736463890319,12.49750188,185.85,185.74,12.49750188]
[1736463890523,2.6916,185.77,185.74,12.49750188]
[1736463891026,12.49750188,185.85,185.74,12.49750188]
[1736463891625,12.49750188,185.85,185.71,12.49750188]
[1736463891626,2.6919,185.75,185.71,12.49750188]
[1736463892313,4.88,185.81,185.71,12.49750188]
[1736463892513,2.6921,185.74,185.71,12.49750188]
[1736463896126,12.49750188,185.79,185.68,3.1871]
[1736463896427,12.49750188,185.79,185.66,12.49750188]
[1736463897427,2.6929,185.69,185.66,12.49750188]
[1736463897626,12.49750188,185.79,185.66,12.49750188]
[1736463897928,8.00373745,185.82,185.73,12.49750188]
[1736463898125,8.00373745,185.82,185.76,12.49750188]
[1736463898519,2.6913,185.79,185.76,12.49750188]
[1736463898927,21.3081,185.73,185.65,0.20087]
[1736463899234,38.74560188,185.73,185.65,0.20087]
[1736463899926,2.6925,185.71,185.65,0.20087]
[1736463900126,38.74560188,185.73,185.65,0.20087]
[1736463900526,38.74560188,185.73,185.6,3.0725]
[1736463901026,12.49750188,185.7,185.6,3.0725]
[1736463901426,4.94,185.73,185.6,3.0725]
[1736463901427,20.06655134,185.71,185.6,3.0725]
[1736463901931,4.94,185.73,185.6,3.0725]
[1736463902329,2.6931,185.67,185.61,16.37665017]
[1736463902525,4.94,185.73,185.61,13.68275017]
[1736463903328,2.6935,185.65,185.61,13.68275017]
[1736463903631,4.94,185.73,185.61,13.68275017]
[1736463903828,2.6938,185.62,185.61,13.68275017]
[1736463905833,2.6938,185.62,185.61,5.017e-05]
[1736463906129,2.6943,185.58,185.57,0.22988]
[1736463906533,2.6943,185.58,185.57,8e-05]
[1736463907736,20.06655134,185.6,185.48,5.0887]
[1736463907935,20.06655134,185.57,185.48,5.0887]
[1736463908236,20.06655134,185.57,185.48,3.5589]
[1736463908640,20.06655134,185.54,185.48,3.5589]
[1736463908833,4.98,185.53,185.48,3.5589]
[1736463911039,7.6752,185.53,185.48,3.5589]
[1736463911339,4.98,185.53,185.48,3.5589]
[1736463911538,2.6954,185.51,185.48,3.5589]
[1736463911735,4.98,185.53,185.48,3.5589]
[1736463912243,7.6752,185.53,185.48,3.5589]
[1736463912743,2.6952,185.53,185.48,3.5589]
[1736463912937,4.96,185.55,185.48,3.5589]
[1736463913132,2.6952,185.52,185.48,3.5589]
[1736463913645,4.96,185.55,185.48,3.5589]
[1736463913843,2.6955,185.5,185.48,3.5589]
[1736463914034,4.96,185.55,185.48,3.5589]
[1736463915140,2.6951,185.53,185.48,3.5589]